[Event "Late-Titled-Tuesday-Blitz-September-12-2023"]
[Site "Chess.com"]
[Date "2023.09.12"]
[Round "8"]
[White "DryCounty"]
[Black "Msb2"]
[Result "0-1"]
[WhiteElo "2662"]
[BlackElo "3088"]
[TimeControl "180+1"]
[EndTime "15:22:04 PDT"]
[Termination "Msb2 won by resignation"]

1. e4 {[%clk 0:03:00.9]} 1... e6 {[%clk 0:03:00.3]} 2. d4 {[%clk 0:03:00.3]}
2... d5 {[%clk 0:03:01]} 3. exd5 {[%clk 0:03:00.5]} 3... exd5 {[%clk 0:03:01.9]}
4. Nf3 {[%clk 0:03:00.5]} 4... Nc6 {[%clk 0:03:02.5]} 5. h3 {[%clk 0:02:58.5]}
5... a6 {[%clk 0:03:00.1]} 6. c3 {[%clk 0:02:51.3]} 6... Bf5 {[%clk 0:02:52.2]}
7. Bd3 {[%clk 0:02:46]} 7... Bxd3 {[%clk 0:02:50.7]} 8. Qxd3 {[%clk 0:02:45.5]}
8... Bd6 {[%clk 0:02:51.4]} 9. O-O {[%clk 0:02:45]} 9... Nge7 {[%clk 0:02:51.4]}
10. Nbd2 {[%clk 0:02:30.1]} 10... O-O {[%clk 0:02:48.7]} 11. Re1 {[%clk
0:02:30.2]} 11... Ng6 {[%clk 0:02:47.6]} 12. g3 {[%clk 0:02:27.8]} 12... Qd7
{[%clk 0:02:46.7]} 13. Kg2 {[%clk 0:02:24.6]} 13... Rae8 {[%clk 0:02:46.8]} 14.
Rxe8 {[%clk 0:02:19.1]} 14... Rxe8 {[%clk 0:02:47.7]} 15. Nf1 {[%clk 0:02:17.4]}
15... Nd8 {[%clk 0:02:45.7]} 16. Bd2 {[%clk 0:02:14.7]} 16... h6 {[%clk
0:02:32.2]} 17. Re1 {[%clk 0:02:13]} 17... Rxe1 {[%clk 0:02:32.3]} 18. Bxe1
{[%clk 0:02:12.4]} 18... Ne6 {[%clk 0:02:32.7]} 19. Bd2 {[%clk 0:02:10.8]} 19...
c6 {[%clk 0:02:32.9]} 20. h4 {[%clk 0:01:59.6]} 20... h5 {[%clk 0:02:21.6]} 21.
Kg1 {[%clk 0:01:51.4]} 21... Nef8 {[%clk 0:02:20.9]} 22. Ne3 {[%clk 0:01:45.9]}
22... f6 {[%clk 0:02:17.5]} 23. Qf5 {[%clk 0:01:40.2]} 23... Qxf5 {[%clk
0:02:13.8]} 24. Nxf5 {[%clk 0:01:41.1]} 24... Bc7 {[%clk 0:02:14.5]} 25. Kf1
{[%clk 0:01:35.6]} 25... Kf7 {[%clk 0:02:14.9]} 26. Ke2 {[%clk 0:01:34.2]} 26...
Ne7 {[%clk 0:02:13.8]} 27. Nxe7 {[%clk 0:01:29.7]} 27... Kxe7 {[%clk 0:02:14.7]}
28. Kd3 {[%clk 0:01:28.5]} 28... Ke6 {[%clk 0:02:15.1]} 29. b3 {[%clk
0:01:25.3]} 29... Kf5 {[%clk 0:02:15.4]} 30. Nh2 {[%clk 0:01:19.4]} 30... Ne6
{[%clk 0:02:14.6]} 31. Nf1 {[%clk 0:01:17.2]} 31... g5 {[%clk 0:01:59.5]} 32.
Ne3+ {[%clk 0:01:13.7]} 32... Kg6 {[%clk 0:02:00.2]} 33. Ng2 {[%clk 0:01:01.4]}
33... Ng7 {[%clk 0:01:59.6]} 34. hxg5 {[%clk 0:00:56.3]} 34... fxg5 {[%clk
0:02:00.5]} 35. f4 {[%clk 0:00:54.8]} 35... Nf5 {[%clk 0:01:48.2]} 36. fxg5
{[%clk 0:00:52.9]} 36... Bxg3 {[%clk 0:01:49.1]} 37. Ke2 {[%clk 0:00:48.5]}
37... Nh4 {[%clk 0:01:44.9]} 38. Ne3 {[%clk 0:00:41.4]} 38... Bf4 {[%clk
0:01:34]} 39. Nf1 {[%clk 0:00:21.6]} 39... Bxd2 {[%clk 0:01:29.2]} 40. Kxd2
{[%clk 0:00:21.8]} 40... Kxg5 {[%clk 0:01:30.1]} 41. Ke3 {[%clk 0:00:21.4]}
41... Kg4 {[%clk 0:01:27.9]} 42. c4 {[%clk 0:00:21.1]} 42... Nf5+ {[%clk
0:01:28.1]} 43. Kd3 {[%clk 0:00:21.1]} 43... h4 {[%clk 0:01:27.7]} 44. cxd5
{[%clk 0:00:21.2]} 44... cxd5 {[%clk 0:01:28.6]} 0-1

[Event "Late-Titled-Tuesday-Blitz-September-12-2023"]
[Site "Chess.com"]
[Date "2023.09.12"]
[Round "8"]
[White "AlexOstrovskiy"]
[Black "SpeedofLight0"]
[Result "0-1"]
[WhiteElo "2658"]
[BlackElo "3078"]
[TimeControl "180+1"]
[EndTime "15:22:13 PDT"]
[Termination "SpeedofLight0 won by resignation"]

1. e4 {[%clk 0:03:00.9]} 1... e6 {[%clk 0:02:57.3]} 2. d4 {[%clk 0:02:58.7]}
2... d5 {[%clk 0:02:57.6]} 3. e5 {[%clk 0:02:59.1]} 3... c5 {[%clk 0:02:57.7]}
4. c3 {[%clk 0:02:59.7]} 4... Qb6 {[%clk 0:02:57.4]} 5. Nf3 {[%clk 0:02:59.2]}
5... Bd7 {[%clk 0:02:57.7]} 6. Bd3 {[%clk 0:02:48.2]} 6... Bb5 {[%clk
0:02:57.6]} 7. dxc5 {[%clk 0:02:38.3]} 7... Bxc5 {[%clk 0:02:56.3]} 8. b4 {[%clk
0:02:30.2]} 8... Bf8 {[%clk 0:02:42.2]} 9. O-O {[%clk 0:02:16.4]} 9... Ne7
{[%clk 0:02:40.6]} 10. Be3 {[%clk 0:02:13.3]} 10... Qa6 {[%clk 0:02:40.4]} 11.
Bxb5+ {[%clk 0:02:10.1]} 11... Qxb5 {[%clk 0:02:41.3]} 12. Na3 {[%clk
0:02:07.9]} 12... Qa6 {[%clk 0:02:39.7]} 13. Qb3 {[%clk 0:02:03.5]} 13... Nf5
{[%clk 0:02:38.1]} 14. c4 {[%clk 0:01:43.6]} 14... Nd7 {[%clk 0:02:02.3]} 15.
cxd5 {[%clk 0:01:23.8]} 15... exd5 {[%clk 0:02:03.2]} 16. Qxd5 {[%clk 0:01:17]}
16... Nxe3 {[%clk 0:01:55.9]} 17. fxe3 {[%clk 0:01:16.8]} 17... Qxa3 {[%clk
0:01:55.1]} 18. Nd4 {[%clk 0:00:41.4]} 18... O-O-O {[%clk 0:01:42.6]} 19. Nb5
{[%clk 0:00:18.9]} 19... Qxe3+ {[%clk 0:01:40.6]} 20. Kh1 {[%clk 0:00:19.1]}
20... Qxe5 {[%clk 0:01:15.9]} 21. Nxa7+ {[%clk 0:00:04.5]} 21... Kb8 {[%clk
0:01:14.3]} 22. Nc6+ {[%clk 0:00:04.7]} 22... bxc6 {[%clk 0:01:14.4]} 23. Qxc6
{[%clk 0:00:05.3]} 23... Qc7 {[%clk 0:01:11.4]} 24. Qb5+ {[%clk 0:00:04.4]}
24... Qb7 {[%clk 0:01:11.2]} 25. Qa4 {[%clk 0:00:03.9]} 25... Bd6 {[%clk
0:01:01.8]} 26. Rxf7 {[%clk 0:00:03.5]} 26... Rhf8 {[%clk 0:01:01.6]} 27. Rxg7
{[%clk 0:00:03.6]} 27... Be5 {[%clk 0:00:59.9]} 0-1

[Event "Late-Titled-Tuesday-Blitz-September-12-2023"]
[Site "Chess.com"]
[Date "2023.09.12"]
[Round "8"]
[White "micke12a"]
[Black "Andrej2004"]
[Result "0-1"]
[WhiteElo "2384"]
[BlackElo "2544"]
[TimeControl "180+1"]
[EndTime "15:22:15 PDT"]
[Termination "Andrej2004 won on time"]

1. e4 {[%clk 0:03:00.9]} 1... b6 {[%clk 0:02:58.9]} 2. d4 {[%clk 0:02:46]} 2...
Bb7 {[%clk 0:02:59.4]} 3. Nc3 {[%clk 0:02:43.9]} 3... g6 {[%clk 0:02:58.5]} 4.
Nf3 {[%clk 0:02:43.6]} 4... Bg7 {[%clk 0:02:58.3]} 5. Bc4 {[%clk 0:02:44.2]}
5... e6 {[%clk 0:02:57.7]} 6. O-O {[%clk 0:02:44]} 6... Ne7 {[%clk 0:02:58.1]}
7. Re1 {[%clk 0:02:43.9]} 7... O-O {[%clk 0:02:57.3]} 8. Bf4 {[%clk 0:02:44.2]}
8... d5 {[%clk 0:02:55.6]} 9. exd5 {[%clk 0:02:44]} 9... Nxd5 {[%clk 0:02:55.8]}
10. Nxd5 {[%clk 0:02:42.5]} 10... Bxd5 {[%clk 0:02:53.3]} 11. Bxd5 {[%clk
0:02:42.4]} 11... exd5 {[%clk 0:02:46.6]} 12. Qd3 {[%clk 0:02:39.5]} 12... Nc6
{[%clk 0:02:42.4]} 13. c3 {[%clk 0:02:39.2]} 13... Qd7 {[%clk 0:02:42.3]} 14.
Ne5 {[%clk 0:02:36.5]} 14... Nxe5 {[%clk 0:02:41.7]} 15. Bxe5 {[%clk 0:02:36.9]}
15... Rfe8 {[%clk 0:02:41.2]} 16. Bxg7 {[%clk 0:02:36.1]} 16... Kxg7 {[%clk
0:02:41.4]} 17. Qd2 {[%clk 0:02:32]} 17... Re6 {[%clk 0:02:41.1]} 18. Rxe6
{[%clk 0:02:31.4]} 18... Qxe6 {[%clk 0:02:34.8]} 19. Re1 {[%clk 0:02:30]} 19...
Qd7 {[%clk 0:02:35.4]} 20. Qf4 {[%clk 0:02:29.3]} 20... Re8 {[%clk 0:02:33.8]}
21. Rxe8 {[%clk 0:02:21.1]} 21... Qxe8 {[%clk 0:02:34.7]} 22. h4 {[%clk
0:02:21.2]} 22... Qe7 {[%clk 0:02:33.5]} 23. g3 {[%clk 0:02:16.3]} 23... f6
{[%clk 0:02:27.7]} 24. Kh2 {[%clk 0:02:10.2]} 24... h6 {[%clk 0:02:27.7]} 25.
Qg4 {[%clk 0:02:04.8]} 25... f5 {[%clk 0:02:21.4]} 26. Qf4 {[%clk 0:02:04.1]}
26... a5 {[%clk 0:02:13]} 27. h5 {[%clk 0:02:00.5]} 27... c5 {[%clk 0:01:58.6]}
28. hxg6 {[%clk 0:01:56]} 28... Kxg6 {[%clk 0:01:59.5]} 29. Qb8 {[%clk 0:01:52]}
29... Qe6 {[%clk 0:01:50.3]} 30. dxc5 {[%clk 0:01:44.8]} 30... bxc5 {[%clk
0:01:51.2]} 31. Qc7 {[%clk 0:01:39.5]} 31... d4 {[%clk 0:01:45.8]} 32. Qxc5
{[%clk 0:00:41.6]} 32... d3 {[%clk 0:01:44.3]} 33. Qd4 {[%clk 0:00:38.5]} 33...
Qe4 {[%clk 0:01:43.9]} 34. Qd6+ {[%clk 0:00:36.4]} 34... Kg5 {[%clk 0:01:44.2]}
35. Qd8+ {[%clk 0:00:29.9]} 35... Kg4 {[%clk 0:01:43.9]} 36. Qh4+ {[%clk
0:00:09.5]} 36... Kf3 {[%clk 0:01:43.3]} 37. Qxh6 {[%clk 0:00:08.8]} 37... Ke2
{[%clk 0:01:28]} 38. Qh5+ {[%clk 0:00:04.7]} 38... Ke1 {[%clk 0:01:28.1]} 0-1

[Event "Late-Titled-Tuesday-Blitz-September-12-2023"]
[Site "Chess.com"]
[Date "2023.09.12"]
[Round "8"]
[White "artin10862"]
[Black "mishanick"]
[Result "1-0"]
[WhiteElo "2979"]
[BlackElo "3058"]
[TimeControl "180+1"]
[EndTime "15:22:25 PDT"]
[Termination "artin10862 won by resignation"]

1. Nf3 {[%clk 0:03:00.9]} 1... d5 {[%clk 0:02:59.8]} 2. d4 {[%clk 0:03:00.5]}
2... Nf6 {[%clk 0:02:58.8]} 3. c4 {[%clk 0:03:00.9]} 3... e6 {[%clk 0:02:59.3]}
4. Nc3 {[%clk 0:03:01.1]} 4... Nbd7 {[%clk 0:02:59.5]} 5. cxd5 {[%clk
0:03:01.1]} 5... exd5 {[%clk 0:03:00.4]} 6. Bg5 {[%clk 0:03:01.3]} 6... c6
{[%clk 0:02:59.9]} 7. Qc2 {[%clk 0:03:00.4]} 7... h6 {[%clk 0:02:58.9]} 8. Bh4
{[%clk 0:02:56.6]} 8... Be7 {[%clk 0:02:59.5]} 9. e3 {[%clk 0:02:56.5]} 9... O-O
{[%clk 0:03:00]} 10. Bd3 {[%clk 0:02:56.4]} 10... Re8 {[%clk 0:03:00.2]} 11. Bg3
{[%clk 0:02:55.8]} 11... Nh5 {[%clk 0:02:50.1]} 12. Be5 {[%clk 0:02:47.4]} 12...
Nxe5 {[%clk 0:02:36.1]} 13. Nxe5 {[%clk 0:02:47.1]} 13... Nf6 {[%clk 0:02:05.4]}
14. O-O {[%clk 0:02:46.5]} 14... Bd6 {[%clk 0:02:04.4]} 15. f4 {[%clk
0:02:42.5]} 15... Qe7 {[%clk 0:01:59.6]} 16. Rf3 {[%clk 0:02:30.5]} 16... Be6
{[%clk 0:01:57.8]} 17. Qf2 {[%clk 0:02:24.6]} 17... c5 {[%clk 0:01:56.4]} 18.
Rf1 {[%clk 0:02:20.7]} 18... Rac8 {[%clk 0:01:53.2]} 19. Qh4 {[%clk 0:02:14.2]}
19... cxd4 {[%clk 0:01:11.1]} 20. exd4 {[%clk 0:02:13.4]} 20... Ne4 {[%clk
0:00:58.1]} 21. Qxe7 {[%clk 0:02:07.2]} 21... Rxe7 {[%clk 0:00:56.4]} 22. f5
{[%clk 0:02:04.5]} 22... Bxe5 {[%clk 0:00:38.5]} 23. dxe5 {[%clk 0:02:02.1]}
23... Bd7 {[%clk 0:00:26.2]} 24. Nxd5 {[%clk 0:01:47.3]} 24... Rxe5 {[%clk
0:00:25.8]} 25. Bxe4 {[%clk 0:01:47.5]} 25... Rxe4 {[%clk 0:00:25.7]} 26. f6
{[%clk 0:01:48.1]} 26... Rc2 {[%clk 0:00:09.9]} 27. fxg7 {[%clk 0:01:29.8]}
27... Ree2 {[%clk 0:00:08.3]} 28. Rg3 {[%clk 0:01:25.1]} 28... Rc6 {[%clk
0:00:02.8]} 29. Nf6+ {[%clk 0:01:21.4]} 29... Rxf6 {[%clk 0:00:03.4]} 30. Rxf6
{[%clk 0:01:22.3]} 30... h5 {[%clk 0:00:04.1]} 31. Rh6 {[%clk 0:01:05.8]} 31...
Bg4 {[%clk 0:00:03.4]} 32. h3 {[%clk 0:01:06.4]} 32... Kxg7 {[%clk 0:00:02.7]}
33. Rd6 {[%clk 0:01:07]} 1-0

[Event "Late-Titled-Tuesday-Blitz-September-12-2023"]
[Site "Chess.com"]
[Date "2023.09.12"]
[Round "8"]
[White "kreonx"]
[Black "laiciffOneslraCsungaM"]
[Result "1-0"]
[WhiteElo "2462"]
[BlackElo "2330"]
[TimeControl "180+1"]
[EndTime "15:22:26 PDT"]
[Termination "kreonx won by resignation"]

1. e4 {[%clk 0:02:54]} 1... e6 {[%clk 0:02:59.9]} 2. d4 {[%clk 0:02:51.2]} 2...
d5 {[%clk 0:02:58.1]} 3. Nd2 {[%clk 0:02:51.7]} 3... c5 {[%clk 0:02:57.5]} 4.
exd5 {[%clk 0:02:48.8]} 4... Qxd5 {[%clk 0:02:52]} 5. Ngf3 {[%clk 0:02:46.6]}
5... cxd4 {[%clk 0:02:52.1]} 6. Bc4 {[%clk 0:02:47]} 6... Qd7 {[%clk 0:02:50.1]}
7. Nb3 {[%clk 0:02:45.3]} 7... Qc7 {[%clk 0:02:44.5]} 8. Bb5+ {[%clk 0:02:44.6]}
8... Bd7 {[%clk 0:02:22.4]} 9. Nbxd4 {[%clk 0:02:38]} 9... Bxb5 {[%clk
0:02:01.2]} 10. Nxb5 {[%clk 0:02:38.9]} 10... Qa5+ {[%clk 0:02:01.6]} 11. Nc3
{[%clk 0:02:38.4]} 11... Nf6 {[%clk 0:02:01.6]} 12. O-O {[%clk 0:02:37.2]} 12...
Be7 {[%clk 0:02:00.9]} 13. Qe2 {[%clk 0:02:28.1]} 13... O-O {[%clk 0:02:00]} 14.
Rd1 {[%clk 0:02:19.6]} 14... Nc6 {[%clk 0:01:51.5]} 15. Ne4 {[%clk 0:02:15.6]}
15... Nxe4 {[%clk 0:01:46.1]} 16. Qxe4 {[%clk 0:02:16.5]} 16... Rfd8 {[%clk
0:01:46.1]} 17. Bd2 {[%clk 0:02:04.2]} 17... Qd5 {[%clk 0:01:42.1]} 18. Qe2
{[%clk 0:02:01]} 18... Nd4 {[%clk 0:01:37.2]} 19. Nxd4 {[%clk 0:01:59.6]} 19...
Qxd4 {[%clk 0:01:38.1]} 20. Ba5 {[%clk 0:01:36.3]} 20... Qxb2 {[%clk 0:01:19.1]}
21. Bxd8 {[%clk 0:01:36.6]} 21... Bxd8 {[%clk 0:01:14.6]} 22. Qc4 {[%clk
0:01:25.3]} 22... Bf6 {[%clk 0:01:12.2]} 23. Rab1 {[%clk 0:01:24.9]} 23... Qe5
{[%clk 0:00:59.3]} 24. Rxb7 {[%clk 0:01:21.8]} 24... g6 {[%clk 0:00:58.5]} 25.
Qc7 {[%clk 0:01:16.1]} 25... Qxc7 {[%clk 0:00:53.7]} 26. Rxc7 {[%clk 0:01:17]}
26... a5 {[%clk 0:00:54.1]} 27. Rdd7 {[%clk 0:01:14.4]} 27... Rf8 {[%clk
0:00:53.9]} 28. a4 {[%clk 0:01:10.7]} 28... Be5 {[%clk 0:00:48.4]} 29. Rb7
{[%clk 0:01:08.5]} 29... Bc3 {[%clk 0:00:46.8]} 30. Kf1 {[%clk 0:01:06.7]} 30...
h5 {[%clk 0:00:43.6]} 31. Ke2 {[%clk 0:01:06.2]} 31... Bb4 {[%clk 0:00:38.7]}
32. c4 {[%clk 0:01:04.6]} 32... Rc8 {[%clk 0:00:35.7]} 33. Rxf7 {[%clk
0:00:52.9]} 33... Rxc4 {[%clk 0:00:35.7]} 34. Rg7+ {[%clk 0:00:53.6]} 34... Kf8
{[%clk 0:00:35.6]} 35. Rgc7 {[%clk 0:00:54.5]} 1-0

[Event "Late-Titled-Tuesday-Blitz-September-12-2023"]
[Site "Chess.com"]
[Date "2023.09.12"]
[Round "8"]
[White "nitpicker"]
[Black "jcmesafischer"]
[Result "0-1"]
[WhiteElo "2256"]
[BlackElo "2373"]
[TimeControl "180+1"]
[EndTime "15:22:26 PDT"]
[Termination "jcmesafischer won on time"]

1. d4 {[%clk 0:03:00.9]} 1... Nf6 {[%clk 0:02:57.9]} 2. c4 {[%clk 0:03:00.9]}
2... e6 {[%clk 0:02:57.9]} 3. g3 {[%clk 0:03:00.6]} 3... d5 {[%clk 0:02:57.4]}
4. Nf3 {[%clk 0:03:00.8]} 4... Be7 {[%clk 0:02:57.8]} 5. Bg2 {[%clk 0:03:00.8]}
5... O-O {[%clk 0:02:58.4]} 6. O-O {[%clk 0:03:00.8]} 6... dxc4 {[%clk
0:02:59.3]} 7. Ne5 {[%clk 0:03:00.6]} 7... Nc6 {[%clk 0:02:58.4]} 8. Bxc6 {[%clk
0:02:59.4]} 8... bxc6 {[%clk 0:02:58.4]} 9. Nxc6 {[%clk 0:03:00.2]} 9... Qd7
{[%clk 0:02:58.6]} 10. Nxe7+ {[%clk 0:03:00.4]} 10... Qxe7 {[%clk 0:02:59.5]}
11. Qa4 {[%clk 0:03:00]} 11... e5 {[%clk 0:02:56.2]} 12. dxe5 {[%clk 0:02:58.8]}
12... Qxe5 {[%clk 0:02:55.6]} 13. Qxc4 {[%clk 0:02:58.7]} 13... Be6 {[%clk
0:02:44.2]} 14. Qd3 {[%clk 0:02:47.6]} 14... Rad8 {[%clk 0:02:33.2]} 15. Qe3
{[%clk 0:02:47.6]} 15... Qh5 {[%clk 0:02:32.5]} 16. f3 {[%clk 0:02:47.9]} 16...
Rfe8 {[%clk 0:02:29.1]} 17. Qf2 {[%clk 0:02:42.4]} 17... Bc4 {[%clk 0:02:07.8]}
18. Nc3 {[%clk 0:02:41.4]} 18... Nd5 {[%clk 0:01:46.7]} 19. g4 {[%clk
0:02:30.9]} 19... Qe5 {[%clk 0:01:40.8]} 20. Nxd5 {[%clk 0:00:48.3]} 20... Rxd5
{[%clk 0:01:41.7]} 21. Re1 {[%clk 0:00:44.4]} 21... h5 {[%clk 0:01:30.6]} 22. g5
{[%clk 0:00:38.9]} 22... Bxe2 {[%clk 0:01:21]} 23. Qg3 {[%clk 0:00:18.4]} 23...
Qd4+ {[%clk 0:01:12.7]} 24. Qf2 {[%clk 0:00:18.6]} 24... Qd3 {[%clk 0:00:55.6]}
25. Bf4 {[%clk 0:00:17.1]} 25... Rf5 {[%clk 0:00:55.4]} 26. Qg3 {[%clk
0:00:14.4]} 26... Qd4+ {[%clk 0:00:53.1]} 27. Qf2 {[%clk 0:00:11.2]} 27... Rxf4
{[%clk 0:00:52.8]} 28. Rxe2 {[%clk 0:00:10.3]} 28... Rxe2 {[%clk 0:00:52.6]} 29.
Qe3 {[%clk 0:00:10.7]} 29... Qxe3+ {[%clk 0:00:52.5]} 0-1

[Event "Late-Titled-Tuesday-Blitz-September-12-2023"]
[Site "Chess.com"]
[Date "2023.09.12"]
[Round "8"]
[White "Hilary46"]
[Black "ARTHURMOTIVATOR"]
[Result "1-0"]
[WhiteElo "2544"]
[BlackElo "2363"]
[TimeControl "180+1"]
[EndTime "15:22:28 PDT"]
[Termination "Hilary46 won by checkmate"]

1. e4 {[%clk 0:03:00.9]} 1... e5 {[%clk 0:02:55.7]} 2. Nf3 {[%clk 0:03:01.1]}
2... Nc6 {[%clk 0:02:52]} 3. Bb5 {[%clk 0:03:01.6]} 3... Nge7 {[%clk 0:02:51.4]}
4. Nc3 {[%clk 0:03:01.1]} 4... Ng6 {[%clk 0:02:49.9]} 5. h4 {[%clk 0:02:49.9]}
5... Bd6 {[%clk 0:02:45.6]} 6. h5 {[%clk 0:02:47.9]} 6... Nf4 {[%clk 0:02:45.7]}
7. g3 {[%clk 0:02:48]} 7... Ne6 {[%clk 0:02:45.3]} 8. h6 {[%clk 0:02:42.5]} 8...
g6 {[%clk 0:02:41.3]} 9. Bc4 {[%clk 0:02:38.8]} 9... Ncd4 {[%clk 0:02:37.4]} 10.
Nxd4 {[%clk 0:02:34.4]} 10... exd4 {[%clk 0:02:34.7]} 11. Ne2 {[%clk 0:02:27.7]}
11... c5 {[%clk 0:02:25.5]} 12. d3 {[%clk 0:02:26.7]} 12... b5 {[%clk
0:02:22.1]} 13. Bd5 {[%clk 0:02:24.4]} 13... Rb8 {[%clk 0:02:18.5]} 14. f4
{[%clk 0:02:20.6]} 14... Bb7 {[%clk 0:02:11.3]} 15. Bxb7 {[%clk 0:02:19.2]}
15... Rxb7 {[%clk 0:02:12.2]} 16. Kf2 {[%clk 0:02:17.4]} 16... f5 {[%clk
0:02:08]} 17. exf5 {[%clk 0:02:14.8]} 17... gxf5 {[%clk 0:02:08.9]} 18. Ng1
{[%clk 0:02:14.3]} 18... O-O {[%clk 0:02:01.5]} 19. Bd2 {[%clk 0:02:12.1]} 19...
c4 {[%clk 0:01:58.1]} 20. Qf3 {[%clk 0:02:12.2]} 20... Qb6 {[%clk 0:01:55]} 21.
Qd5 {[%clk 0:02:07.4]} 21... Rc7 {[%clk 0:01:50.9]} 22. Nf3 {[%clk 0:01:51.2]}
22... Rc5 {[%clk 0:01:33.9]} 23. dxc4 {[%clk 0:01:51.4]} 23... Rxd5 {[%clk
0:01:17.1]} 24. cxd5 {[%clk 0:01:52.3]} 24... d3+ {[%clk 0:01:14.9]} 25. Be3
{[%clk 0:01:51.3]} 25... Bc5 {[%clk 0:01:14.9]} 26. Rhe1 {[%clk 0:01:49.1]}
26... Bxe3+ {[%clk 0:01:11.6]} 27. Rxe3 {[%clk 0:01:50]} 27... Nd4 {[%clk
0:01:08.4]} 28. Nxd4 {[%clk 0:01:35.9]} 28... Qxd4 {[%clk 0:01:09.3]} 29. Rd1
{[%clk 0:01:35.2]} 29... Qxb2 {[%clk 0:00:50.7]} 30. Rdxd3 {[%clk 0:01:33.1]}
30... Qxc2+ {[%clk 0:00:49.7]} 31. Kf3 {[%clk 0:01:33.7]} 31... Qxa2 {[%clk
0:00:46.6]} 32. Re7 {[%clk 0:01:32.3]} 32... b4 {[%clk 0:00:30.9]} 33. Rxd7
{[%clk 0:01:30.7]} 33... b3 {[%clk 0:00:29.4]} 34. Re3 {[%clk 0:01:30.5]} 34...
b2 {[%clk 0:00:26.5]} 35. Ree7 {[%clk 0:01:30.6]} 35... Qb3+ {[%clk 0:00:24.9]}
36. Kg2 {[%clk 0:01:29.3]} 36... Qxd5+ {[%clk 0:00:16.6]} 37. Rxd5 {[%clk
0:01:28.7]} 37... b1=Q {[%clk 0:00:17.1]} 38. Rdd7 {[%clk 0:01:29.2]} 38... Qc2+
{[%clk 0:00:14.5]} 39. Kh3 {[%clk 0:01:29.1]} 39... Rf6 {[%clk 0:00:08.4]} 40.
Rg7+ {[%clk 0:01:19.4]} 40... Kf8 {[%clk 0:00:03.6]} 41. Rd8# {[%clk 0:01:19.3]}
1-0

[Event "Late-Titled-Tuesday-Blitz-September-12-2023"]
[Site "Chess.com"]
[Date "2023.09.12"]
[Round "8"]
[White "Vyacheslav_N"]
[Black "GoltsevDmitry2000"]
[Result "0-1"]
[WhiteElo "2484"]
[BlackElo "2627"]
[TimeControl "180+1"]
[EndTime "15:22:30 PDT"]
[Termination "GoltsevDmitry2000 won by resignation"]

1. e4 {[%clk 0:03:00.9]} 1... e6 {[%clk 0:03:00.4]} 2. d4 {[%clk 0:03:01.1]}
2... d5 {[%clk 0:03:01.3]} 3. Nd2 {[%clk 0:03:00.3]} 3... c5 {[%clk 0:03:01.1]}
4. exd5 {[%clk 0:03:00.4]} 4... exd5 {[%clk 0:03:01.1]} 5. Bb5+ {[%clk
0:02:59.6]} 5... Nc6 {[%clk 0:03:00.7]} 6. Qe2+ {[%clk 0:03:00]} 6... Be7 {[%clk
0:02:59]} 7. dxc5 {[%clk 0:03:00.6]} 7... Nf6 {[%clk 0:02:59.2]} 8. Ngf3 {[%clk
0:03:01.1]} 8... O-O {[%clk 0:02:59]} 9. O-O {[%clk 0:03:01.7]} 9... Bxc5 {[%clk
0:02:59.3]} 10. Nb3 {[%clk 0:03:02.4]} 10... Bb6 {[%clk 0:02:59.4]} 11. h3
{[%clk 0:03:02]} 11... Qd6 {[%clk 0:02:58.8]} 12. c3 {[%clk 0:03:01.6]} 12... a6
{[%clk 0:02:56.5]} 13. Bd3 {[%clk 0:03:01]} 13... Bd7 {[%clk 0:02:55.2]} 14. Bg5
{[%clk 0:02:58.9]} 14... h6 {[%clk 0:02:55.2]} 15. Bxf6 {[%clk 0:02:58.7]} 15...
Qxf6 {[%clk 0:02:54.9]} 16. Rad1 {[%clk 0:02:59]} 16... Qf4 {[%clk 0:02:43.5]}
17. Rde1 {[%clk 0:02:54.6]} 17... Rae8 {[%clk 0:02:27.6]} 18. Qd1 {[%clk
0:02:54.1]} 18... Rxe1 {[%clk 0:02:19.9]} 19. Rxe1 {[%clk 0:02:54.5]} 19... Bxh3
{[%clk 0:02:13.9]} 20. gxh3 {[%clk 0:02:52.2]} 20... Qg3+ {[%clk 0:02:12.4]} 21.
Kh1 {[%clk 0:02:52.4]} 21... Qxh3+ {[%clk 0:02:08.5]} 22. Nh2 {[%clk 0:02:51.6]}
22... Bc7 {[%clk 0:02:00.9]} 23. f4 {[%clk 0:02:47.2]} 23... Bxf4 {[%clk
0:02:01.2]} 24. Qe2 {[%clk 0:02:46.4]} 24... Ne5 {[%clk 0:01:58]} 25. Bc2 {[%clk
0:02:33.7]} 25... Bxh2 {[%clk 0:01:53.1]} 26. Qxh2 {[%clk 0:02:30.4]} 26...
Qxh2+ {[%clk 0:01:53.2]} 27. Kxh2 {[%clk 0:02:31.3]} 27... Nf3+ {[%clk
0:01:53.8]} 28. Kg3 {[%clk 0:02:31.4]} 28... Nxe1 {[%clk 0:01:54.5]} 29. Bb1
{[%clk 0:02:31.1]} 29... Re8 {[%clk 0:01:47.8]} 30. Kf2 {[%clk 0:02:30.7]} 30...
g5 {[%clk 0:01:48.1]} 31. Nd4 {[%clk 0:02:30.6]} 31... g4 {[%clk 0:01:44.1]} 32.
Ne2 {[%clk 0:02:29.9]} 32... Nf3 {[%clk 0:01:43.5]} 33. Nf4 {[%clk 0:02:29]}
33... d4 {[%clk 0:01:39.6]} 34. Bf5 {[%clk 0:02:22.7]} 34... dxc3 {[%clk
0:01:37]} 35. bxc3 {[%clk 0:02:23.6]} 35... Nd2 {[%clk 0:01:32.2]} 36. Nd5
{[%clk 0:01:51.1]} 36... Kh8 {[%clk 0:01:21.5]} 37. Bxg4 {[%clk 0:01:48.4]}
37... Re5 {[%clk 0:01:18.9]} 38. Ne3 {[%clk 0:01:12.1]} 38... Ne4+ {[%clk
0:01:17.8]} 39. Kf3 {[%clk 0:01:11.4]} 39... Nxc3 {[%clk 0:01:17.8]} 40. Bc8
{[%clk 0:01:09.8]} 40... Re7 {[%clk 0:01:08]} 41. a3 {[%clk 0:01:01.9]} 41... a5
{[%clk 0:01:06.1]} 42. Bf5 {[%clk 0:01:00.4]} 42... b5 {[%clk 0:01:00.8]} 43.
Bd3 {[%clk 0:00:59.3]} 43... b4 {[%clk 0:00:59.4]} 44. axb4 {[%clk 0:01:00.2]}
44... axb4 {[%clk 0:01:00.1]} 45. Bc4 {[%clk 0:01:00.9]} 45... Rb7 {[%clk
0:00:55.7]} 46. Bb3 {[%clk 0:01:00.8]} 46... h5 {[%clk 0:00:54.4]} 47. Kf4
{[%clk 0:00:59.7]} 47... Ne2+ {[%clk 0:00:52.2]} 48. Kg5 {[%clk 0:00:59.3]}
48... Nd4 {[%clk 0:00:52.4]} 49. Bd1 {[%clk 0:00:58.3]} 49... b3 {[%clk
0:00:52.2]} 50. Bxb3 {[%clk 0:00:56.8]} 50... Rxb3 {[%clk 0:00:53.1]} 51. Nd5
{[%clk 0:00:56.7]} 51... Rb5 {[%clk 0:00:52.2]} 0-1